bitfinex/quotes_ETHUSD_20250906
["timestamp","ask_amount","ask_price","bid_price","bid_amount"]
[1757130020435,1.104,4313.6,4313.5,3.56030971]
[1757130020594,1.104,4313.6,4313.5,7.40830971]
[1757130020795,1.32986,4313.6,4313.5,7.40830971]
[1757130023261,1.01886,4313.6,4313.5,7.40830971]
[1757130025371,1.01886,4313.6,4313.5,10.17730971]
[1757130025695,1.01886,4313.6,4313.5,23.59630971]
[1757130026782,1.01886,4313.6,4313.5,20.82730971]
[1757130027090,1.01886,4313.6,4313.5,14.43730971]
[1757130029531,1.01886,4313.6,4313.5,7.40830971]
[1757130034808,1.01886,4313.6,4313.5,7.87310971]
[1757130035459,1.01886,4313.6,4313.5,24.06110971]
[1757130035694,1.01886,4313.6,4313.5,24.37290971]
[1757130036064,0.793,4313.6,4313.5,25.55100971]
[1757130038092,0.001,4314.1,4314.0,0.46360686]
[1757130038291,0.001,4314.1,4314.0,7.31160686]
[1757130038488,0.001,4314.1,4314.0,7.62340686]
[1757130038824,0.001,4314.1,4314.0,9.5320071]
[1757130041022,0.001,4314.1,4314.0,7.8891071]
[1757130041195,0.001,4314.1,4314.0,7.5773071]
[1757130041400,0.001,4314.1,4314.0,7.8733071]
[1757130041601,0.001,4314.1,4314.0,8.3297071]
[1757130045343,0.001,4314.1,4314.0,9.4854071]
[1757130045534,0.001,4314.1,4314.0,25.6694071]
[1757130048211,0.001,4314.1,4314.0,24.5137071]
[1757130049647,0.001,4314.1,4314.0,21.7457071]
[1757130049844,0.001,4314.1,4314.0,15.3567071]
[1757130051457,0.001,4314.1,4314.0,16.5124071]
[1757130051612,0.001,4314.1,4314.0,11.1884071]
[1757130052158,0.001,4314.1,4314.0,9.4854071]
[1757130054547,0.001,4314.1,4314.0,7.8733071]
[1757130054721,0.001,4314.1,4314.0,9.4854071]
[1757130055455,0.001,4314.1,4314.0,25.6694071]
[1757130058762,0.001,4314.1,4314.0,22.9014071]
[1757130062144,0.001,4314.1,4314.0,21.7457071]
[1757130062547,0.001,4314.1,4314.0,8.3297071]
[1757130062866,0.001,4314.1,4314.0,8.3337071]
[1757130064382,1.4565,4314.1,4314.0,7.5813071]
[1757130064580,1.76765,4314.1,4314.0,7.5813071]
[1757130064999,2.55965,4314.1,4314.0,0.26970024]
[1757130065192,2.55965,4314.1,4314.0,4.5793071]
[1757130065362,2.55965,4314.1,4314.0,13.27270024]
[1757130065568,2.55965,4314.1,4314.0,20.12664653]
[1757130066585,2.55965,4314.1,4314.0,20.034]
[1757130069474,2.55965,4314.1,4314.0,20.49760686]
[1757130070771,2.39425,4314.1,4314.0,20.49760686]
[1757130071797,2.55965,4314.1,4314.0,20.49760686]
[1757130072292,2.39425,4314.1,4314.0,20.49760686]
[1757130075442,1.23465,4314.1,4314.0,20.49760686]
[1757130075929,0.14675,4314.1,4314.0,22.34760686]
[1757130076091,0.001,4314.1,4314.0,22.34760686]
[1757130076288,0.001,4314.1,4314.0,23.04250733]
[1757130076506,0.001,4314.1,4314.0,21.95510733]
[1757130078460,0.1,4314.1,4314.0,21.19250733]
[1757130078606,0.21868,4314.1,4314.0,21.19250733]
[1757130080942,1.30448,4314.1,4314.0,21.19250733]
[1757130082356,2.09648,4314.1,4314.0,21.19250733]
[1757130083140,1.01068,4314.1,4314.0,21.19250733]
[1757130083737,1.01068,4314.1,4314.0,20.49760686]
[1757130091633,0.91168,4314.1,4314.0,21.26020686]
[1757130092776,0.91168,4314.1,4314.0,22.34760686]
[1757130093933,0.91168,4314.1,4314.0,23.04258138]
[1757130094677,0.793,4314.1,4314.0,23.04258138]
[1757130097989,0.001,4314.1,4314.0,23.04258138]
[1757130099722,0.001,4314.1,4314.0,26.04258138]
[1757130101907,0.001,4314.1,4314.0,23.27458138]
[1757130102114,0.001,4314.1,4314.0,16.88558138]
[1757130102739,0.001,4314.1,4314.0,9.85858138]
[1757130105499,0.001,4314.4,4314.3,0.46357462]
[1757130105711,0.001,4314.4,4314.3,7.30957462]
[1757130105942,0.001,4314.4,4314.3,9.11447462]
[1757130108070,0.001,4314.5,4314.4,3.46356387]
[1757130108235,0.001,4314.5,4314.4,0.46356387]
[1757130108426,0.001,4314.5,4314.4,2.26846387]
[1757130108739,0.001,4314.5,4314.4,5.96323237]
[1757130109953,0.001,4314.5,4314.4,6.08046305]
[1757130113638,0.001,4314.5,4314.4,5.03516305]
[1757130115457,0.001,4314.5,4314.4,22.26446305]
[1757130118359,0.001,4314.5,4314.4,6.08046305]
[1757130118596,0.001,4314.5,4314.4,5.03516305]
[1757130121102,0.001,4314.5,4314.4,4.58376305]
[1757130125624,0.001,4314.5,4314.4,20.76676305]
[1757130126620,0.001,4314.5,4314.4,21.21816305]
[1757130128536,0.001,4314.5,4314.4,6.73816305]
[1757130128744,0.001,4314.5,4314.4,5.03516305]
[1757130133334,0.001,4314.5,4314.4,4.91793237]
[1757130133563,0.001,4314.5,4314.4,5.03303949]
[1757130135429,0.001,4314.5,4314.4,21.21603949]
[1757130136572,0.001,4314.5,4314.4,21.10093237]
[1757130136788,0.001,4314.5,4314.4,20.64953237]
[1757130138454,0.001,4314.5,4314.4,11.49353237]
[1757130139342,0.2897,4314.5,4314.4,11.18533237]
[1757130140372,0.55236593,4314.5,4314.4,4.15833237]
[1757130143454,0.26366593,4314.5,4314.4,4.15833237]
[1757130145395,0.26366593,4314.5,4314.4,18.63833237]
[1757130145598,0.26366593,4314.5,4314.4,20.34133237]
[1757130148404,0.26366593,4314.5,4314.4,17.57333237]
[1757130148702,0.26366593,4314.5,4314.4,11.18533237]
[1757130148869,2.18986593,4314.5,4314.4,15.02933237]
[1757130149226,2.18986593,4314.5,4314.4,12.02933237]
[1757130151504,2.55026593,4314.5,4314.4,12.02933237]
[1757130151836,2.55026593,4314.5,4314.4,11.33456387]
[1757130152041,2.55026593,4314.5,4314.4,10.871]
[1757130152394,3.17510797,4314.4,4314.3,0.004]
[1757130152804,4.66970797,4314.4,4314.3,0.004]
[1757130153612,4.66970797,4314.4,4314.3,0.832]
[1757130154029,0.792,4314.2,4314.0,0.004]
[1757130154539,2.2867,4314.1,4314.0,0.004]
[1757130155133,1.9314,4314.1,4314.0,1.24960686]
[1757130155339,1.9314,4314.1,4314.0,0.786]
[1757130155641,2.4238522,4314.1,4314.0,14.202]
[1757130157029,2.7791522,4314.1,4314.0,14.202]
[1757130158442,2.4238522,4314.1,4314.0,14.202]
[1757130158613,2.7791522,4314.1,4314.0,14.202]
[1757130162343,2.4238522,4314.1,4314.0,14.202]
[1757130165559,1.2844522,4314.1,4314.0,14.513]
[1757130165748,1.2844522,4314.1,4314.0,14.202]
[1757130165948,1.3834522,4314.1,4314.0,14.202]
[1757130166627,1.2844522,4314.1,4314.0,14.202]
[1757130166835,1.2844522,4314.1,4314.0,14.9662]
[1757130167437,1.2844522,4314.1,4314.0,14.6552]
[1757130168472,1.2844522,4314.1,4314.0,14.202]
[1757130168672,1.2844522,4314.1,4314.0,15.11880686]
[1757130168883,1.2844522,4314.1,4314.0,15.42980686]
[1757130170342,1.2844522,4314.1,4314.0,14.9662]
[1757130172366,1.2844522,4314.1,4314.0,14.6552]
[1757130173329,1.2844522,4314.1,4314.0,14.9662]
[1757130173965,1.2844522,4314.1,4314.0,14.202]
[1757130176671,1.2844522,4314.1,4314.0,14.6552]
[1757130177474,1.2844522,4314.1,4314.0,14.9662]
[1757130180986,1.2844522,4314.1,4314.0,15.42980686]
[1757130181475,1.2844522,4314.1,4314.0,14.9662]
[1757130182408,1.2844522,4314.1,4314.0,16.44680686]
[1757130185117,1.2844522,4314.1,4314.0,15.9832]
[1757130185302,1.2844522,4314.1,4314.0,16.44680686]
[1757130186108,0.792,4314.1,4314.0,16.44680686]
[1757130186284,0.001,4314.5,4314.4,0.46356387]
[1757130186484,0.001,4314.5,4314.4,4.30756387]
[1757130186812,0.001,4314.5,4314.4,6.08876387]
[1757130192989,0.001,4314.5,4314.4,9.08876387]
[1757130193313,0.001,4314.6,4314.5,3.46355313]
[1757130193501,0.001,4314.6,4314.5,4.94075313]
[1757130193698,0.001,4314.6,4314.5,5.23335313]
[1757130195510,0.001,4314.6,4314.5,14.39235313]
[1757130196637,0.001,4314.6,4314.5,15.08714739]
[1757130199150,0.001,4314.6,4314.5,5.92814739]
[1757130205450,0.001,4314.6,4314.5,22.11214739]
[1757130207344,0.001,4314.6,4314.5,19.34414739]
[1757130207550,0.001,4314.6,4314.5,12.95514739]
[1757130208122,0.001,4314.6,4314.5,11.94944739]
[1757130209243,0.001,4314.6,4314.5,4.92244739]
[1757130211223,78.26157256,4314.7,4314.6,0.46354239]
[1757130211569,59.95308319,4314.7,4314.6,9.07634239]
[1757130211959,59.95308319,4314.7,4314.6,9.7709822]
[1757130212158,56.83146713,4314.7,4314.6,9.7709822]
[1757130212360,55.16528264,4314.7,4314.6,9.7709822]
[1757130213197,53.15840397,4314.7,4314.6,9.7709822]
[1757130213403,53.15840397,4314.7,4314.6,9.30743981]
[1757130215511,53.15840397,4314.7,4314.6,25.49043981]
[1757130215863,52.68168531,4314.7,4314.6,16.33443981]
[1757130216182,52.36387287,4314.7,4314.6,16.33443981]
[1757130216497,51.72824799,4314.7,4314.6,16.33443981]
[1757130216698,51.72824799,4314.7,4314.6,11.01043981]
[1757130216864,51.72824799,4314.7,4314.6,9.30743981]
[1757130218388,50.75127861,4314.7,4314.6,9.30743981]
[1757130218565,50.26279392,4314.7,4314.6,9.30743981]
[1757130218923,49.77430923,4314.7,4314.6,9.30743981]
[1757130225435,49.77430923,4314.7,4314.6,25.48943981]
[1757130227926,49.94566916,4314.7,4314.6,25.48943981]
[1757130228956,49.94566916,4314.7,4314.6,8.30173981]
[1757130232946,49.94566916,4314.7,4314.6,8.30573981]
[1757130233848,49.77430923,4314.7,4314.6,8.30573981]
[1757130235367,49.77430923,4314.7,4314.6,17.46073981]
[1757130235543,49.77430923,4314.7,4314.6,24.48673981]
[1757130238467,49.77430923,4314.7,4314.6,26.56895715]
[1757130238866,49.77430923,4314.7,4314.6,12.09095715]
[1757130240274,49.77430923,4314.7,4314.6,10.00873981]
[1757130240878,49.77430923,4314.7,4314.6,8.30573981]
[1757130242891,49.77430923,4314.7,4314.6,7.83423981]
[1757130243893,49.77430923,4314.7,4314.6,8.29773981]
[1757130245481,49.77430923,4314.7,4314.6,24.47873981]
[1757130246400,43.77221035,4314.7,4314.6,54.47873981]
[1757130248821,43.77221035,4314.7,4314.6,40.00073981]
[1757130249118,43.77221035,4314.7,4314.6,38.29773981]
[1757130250125,43.77221035,4314.7,4314.6,39.50003981]
[1757130252368,43.77221035,4314.7,4314.6,38.29773981]
[1757130253375,43.94643322,4314.7,4314.6,38.29773981]
[1757130253580,43.77221035,4314.7,4314.6,38.29773981]
[1757130255429,43.77221035,4314.7,4314.6,54.47673981]
[1757130257577,43.94254656,4314.7,4314.6,24.47673981]
[1757130257903,43.94254656,4314.7,4314.6,54.47673981]
[1757130259499,43.94254656,4314.7,4314.6,51.70973981]
[1757130259804,43.94254656,4314.7,4314.6,45.32273981]
[1757130261702,43.94254656,4314.7,4314.6,38.29773981]
[1757130262097,43.77221035,4314.7,4314.6,38.29773981]
[1757130263817,43.77221035,4314.7,4314.6,8.29773981]
[1757130264018,43.77221035,4314.7,4314.6,38.29773981]
[1757130265403,43.77221035,4314.7,4314.6,54.47673981]
[1757130269540,43.77221035,4314.7,4314.6,51.70973981]
[1757130271504,43.77221035,4314.7,4314.6,45.32273981]
[1757130273629,43.77221035,4314.7,4314.6,38.29773981]
[1757130275542,43.77221035,4314.7,4314.6,55.86673981]
[1757130275742,43.77221035,4314.7,4314.6,54.47673981]
[1757130277643,43.77221035,4314.7,4314.6,51.70973981]
[1757130279310,43.77221035,4314.7,4314.6,54.62685146]
[1757130279504,43.77221035,4314.7,4314.6,48.23985146]
[1757130280450,43.77221035,4314.7,4314.6,39.51263981]
[1757130281938,43.77221035,4314.7,4314.6,38.29773981]
[1757130284418,42.35224473,4314.7,4314.6,38.29773981]
[1757130284664,41.95626487,4314.7,4314.6,38.29773981]
[1757130285559,41.95626487,4314.7,4314.6,54.47573981]
[1757130286450,40.62991918,4314.7,4314.6,54.47573981]
[1757130286649,39.13687475,4314.7,4314.6,54.47573981]
[1757130286871,39.13687475,4314.7,4314.6,51.70873981]
[1757130288962,39.13687475,4314.7,4314.6,40.00073981]
[1757130290837,39.13687475,4314.7,4314.6,38.29773981]
[1757130291362,39.3092584,4314.7,4314.6,38.29773981]
[1757130295476,39.3092584,4314.7,4314.6,54.47573981]
[1757130295670,39.3092584,4314.7,4314.6,51.70873981]
[1757130297580,40.29887475,4314.7,4314.6,50.95263981]
[1757130297775,40.09814955,4314.7,4314.6,50.95263981]
[1757130298095,40.37354353,4314.7,4314.6,33.69863981]
[1757130298248,40.53464353,4314.7,4314.6,37.53663981]
[1757130298577,40.37354353,4314.7,4314.6,37.53663981]
[1757130299995,40.19772435,4314.7,4314.6,37.53663981]
[1757130300291,40.19772435,4314.7,4314.6,40.45033011]
[1757130300699,40.19772435,4314.7,4314.6,37.53663981]
[1757130300894,40.19772435,4314.7,4314.6,7.53663981]
[1757130301195,40.19772435,4314.7,4314.6,37.53663981]
[1757130302359,39.99699915,4314.7,4314.6,37.53663981]
[1757130302698,39.89663655,4314.7,4314.6,37.53663981]
[1757130302999,39.69591135,4314.7,4314.6,37.53663981]
[1757130303363,41.96381932,4314.7,4314.6,30.69863981]
[1757130303675,42.12491932,4314.7,4314.6,37.53663981]
[1757130304479,42.12491932,4314.7,4314.6,4.53663981]
[1757130305470,42.12491932,4314.7,4314.6,23.71463981]
[1757130310469,42.12491932,4314.7,4314.6,20.94763981]
[1757130310801,42.12491932,4314.7,4314.6,9.23963981]
[1757130312281,41.96381932,4314.7,4314.6,9.23963981]
[1757130312628,41.96381932,4314.7,4314.6,7.53663981]
[1757130315505,41.96381932,4314.7,4314.6,23.71763981]
[1757130318729,41.96381932,4314.7,4314.6,7.53663981]
[1757130319628,40.50151932,4314.7,4314.6,7.53663981]
[1757130319825,41.64401932,4314.7,4314.6,7.53663981]
[1757130320031,38.23361135,4314.7,4314.6,37.53663981]
[1757130320192,38.23361135,4314.7,4314.6,38.27213981]
[1757130320524,38.23361135,4314.7,4314.6,37.84083981]
[1757130320907,38.23361135,4314.7,4314.6,37.53663981]
[1757130322527,38.23361135,4314.7,4314.6,37.84083981]
[1757130322706,38.23361135,4314.7,4314.6,39.40093981]
[1757130324607,38.23361135,4314.7,4314.6,9.40093981]
[1757130324806,38.23361135,4314.7,4314.6,39.40093981]
[1757130325452,38.23361135,4314.7,4314.6,55.58193981]
[1757130328939,38.23361135,4314.7,4314.6,52.81393981]
[1757130329153,38.23361135,4314.7,4314.6,46.42693981]
[1757130329352,38.23361135,4314.7,4314.6,41.10393981]
[1757130329665,38.23116474,4314.7,4314.6,41.10393981]
[1757130330842,38.23116474,4314.7,4314.6,39.40093981]
[1757130333917,38.23116474,4314.7,4314.6,38.27213981]
[1757130334683,38.23116474,4314.7,4314.6,37.53663981]
[1757130335602,38.23116474,4314.7,4314.6,54.45113981]
[1757130336415,38.23116474,4314.7,4314.6,54.01983981]
[1757130336708,38.23116474,4314.7,4314.6,53.71563981]
[1757130337208,38.23116474,4314.7,4314.6,54.14693981]
[1757130337645,38.23116474,4314.7,4314.6,53.71563981]
[1757130338230,38.23116474,4314.7,4314.6,54.14693981]
[1757130338800,38.23116474,4314.7,4314.6,54.45113981]
[1757130339715,38.23116474,4314.7,4314.6,39.97513981]
[1757130341751,38.23116474,4314.7,4314.6,37.53663981]
[1757130342209,38.23116474,4314.7,4314.6,38.32253981]
[1757130345022,38.23116474,4314.7,4314.6,8.32253981]
[1757130345230,38.23116474,4314.7,4314.6,38.32253981]
[1757130345429,38.23116474,4314.7,4314.6,54.50153981]
[1757130347056,34.98405447,4314.7,4314.6,24.50153981]
[1757130347220,33.23897342,4314.7,4314.6,54.50153981]
[1757130347443,33.23897342,4314.7,4314.6,45.34753981]
[1757130349738,33.23897342,4314.7,4314.6,44.56163981]
[1757130350648,33.23897342,4314.7,4314.6,37.53663981]
[1757130350852,34.43757342,4314.7,4314.6,37.53663981]
[1757130351732,34.53657342,4314.7,4314.6,37.53663981]
[1757130353576,33.23897342,4314.7,4314.6,38.32253981]
[1757130353961,33.23897342,4314.7,4314.6,41.23623011]
[1757130355279,33.23897342,4314.7,4314.6,38.32253981]
[1757130355478,33.23897342,4314.7,4314.6,54.50153981]
[1757130355665,33.23897342,4314.7,4314.6,57.41523011]
[1757130356793,33.23897342,4314.7,4314.6,57.10093011]
[1757130357144,33.23897342,4314.7,4314.6,56.62933011]
[1757130357552,33.23897342,4314.7,4314.6,57.10093011]
[1757130357752,33.23897342,4314.7,4314.6,57.41523011]
[1757130360491,35.04921737,4314.7,4314.6,36.61233011]
[1757130360696,35.40961737,4314.7,4314.6,40.44933011]
[1757130360993,35.40961737,4314.7,4314.6,37.53563981]
[1757130361499,34.89697342,4314.7,4314.6,37.53563981]
[1757130361670,34.89697342,4314.7,4314.6,7.53563981]
[1757130363625,34.53657342,4314.7,4314.6,7.53563981]
[1757130364709,34.53657342,4314.7,4314.6,7.53563981]
[1757130365531,34.53657342,4314.7,4314.6,23.71463981]
[1757130366679,34.89697342,4314.7,4314.6,23.71463981]
[1757130367092,34.53657342,4314.7,4314.6,23.71463981]
[1757130368431,34.53657342,4314.7,4314.6,20.94763981]
[1757130368809,33.23897342,4314.7,4314.6,20.94763981]
[1757130369221,33.23897342,4314.7,4314.6,21.26193981]
[1757130369429,33.23897342,4314.7,4314.6,21.69793981]
[1757130369804,33.23897342,4314.7,4314.6,7.84993981]
[1757130370134,33.23897342,4314.7,4314.6,7.53563981]
[1757130370352,28.59844274,4314.7,4314.6,8.27163981]
[1757130370495,28.59844274,4314.7,4314.6,38.27163981]
[1757130373901,29.76184274,4314.7,4314.6,37.53563981]
[1757130374107,29.86084274,4314.7,4314.6,37.53563981]
[1757130375542,29.86084274,4314.7,4314.6,53.71463981]
[1757130377019,29.86084274,4314.7,4314.6,23.71463981]
[1757130377220,29.86084274,4314.7,4314.6,53.71463981]
[1757130378879,29.86084274,4314.7,4314.6,39.23863981]
[1757130379075,29.86084274,4314.7,4314.6,9.23863981]
[1757130379380,29.86084274,4314.7,4314.6,39.23863981]
[1757130380633,29.86084274,4314.7,4314.6,37.53563981]
[1757130385476,29.86084274,4314.7,4314.6,53.71463981]
[1757130388781,29.86084274,4314.7,4314.6,37.53563981]
[1757130389678,32.12875071,4314.7,4314.6,3.69863981]
[1757130389888,32.48915071,4314.7,4314.6,7.53463981]
[1757130391884,32.12875071,4314.7,4314.6,7.53463981]
[1757130395457,32.12875071,4314.7,4314.6,23.71563981]
[1757130397977,32.12875071,4314.7,4314.6,14.56063981]
[1757130398786,32.02975071,4314.7,4314.6,14.56063981]
[1757130399629,32.13135071,4314.7,4314.6,14.56063981]
[1757130402038,32.13135071,4314.7,4314.6,7.53463981]
[1757130403141,32.48915071,4314.7,4314.6,7.53463981]
[1757130405508,32.48915071,4314.7,4314.6,23.71663981]
[1757130407117,32.13135071,4314.7,4314.6,23.71663981]
[1757130409125,32.13135071,4314.7,4314.6,14.73207312]
[1757130411137,32.13135071,4314.7,4314.6,7.53463981]
[1757130414584,30.86635071,4314.7,4314.6,7.99063981]
[1757130414778,30.86635071,4314.7,4314.6,8.27763981]
[1757130415591,30.86635071,4314.7,4314.6,24.45963981]
[1757130417293,28.59844274,4314.7,4314.6,21.69163981]
[1757130419162,28.59844274,4314.7,4314.6,9.98063981]
[1757130419361,28.59844274,4314.7,4314.6,8.27763981]
[1757130423868,28.59844274,4314.7,4314.6,7.53463981]
[1757130424060,29.82134274,4314.7,4314.6,7.53463981]
[1757130424518,32.08925071,4314.7,4314.6,7.53463981]
[1757130424870,32.08925071,4314.7,4314.6,3.69863981]
[1757130425070,32.44965071,4314.7,4314.6,7.53463981]
[1757130425510,33.24165071,4314.7,4314.6,16.88063981]
[1757130425671,33.24165071,4314.7,4314.6,20.022]
[1757130429702,35.55930894,4314.7,4314.6,20.022]
[1757130430716,33.24165071,4314.7,4314.6,20.022]
[1757130436792,35.55930894,4314.7,4314.6,20.022]
[1757130440432,33.24165071,4314.7,4314.6,20.022]
[1757130441043,35.55930894,4314.7,4314.6,20.022]
[1757130441254,35.19890894,4314.7,4314.6,20.022]
[1757130441412,30.86635071,4314.7,4314.6,20.7696]
[1757130442050,31.65835071,4314.7,4314.6,20.7696]
[1757130443752,30.86635071,4314.7,4314.6,21.9023]
[1757130443963,28.59844274,4314.7,4314.6,21.9023]
[1757130444139,28.59844274,4314.7,4314.6,22.5971377]
[1757130444862,29.39044274,4314.7,4314.6,22.5971377]
[1757130454992,28.59844274,4314.7,4314.6,21.4644377]
[1757130463615,28.59844274,4314.7,4314.6,25.5230377]
[1757130465721,28.59844274,4314.7,4314.6,22.7550377]
[1757130465922,28.59844274,4314.7,4314.6,21.6964377]
[1757130466742,28.59844274,4314.7,4314.6,17.1128377]
[1757130466943,28.89264274,4314.7,4314.6,17.1128377]
[1757130467142,32.31395071,4314.7,4314.6,20.9488377]
[1757130467320,32.31395071,4314.7,4314.6,17.9488377]
[1757130467848,33.10595071,4314.7,4314.6,17.9488377]
[1757130470527,33.27305071,4314.7,4314.6,17.9488377]
[1757130470942,33.10595071,4314.7,4314.6,17.9488377]
[1757130473811,33.10595071,4314.7,4314.6,4.18756323]
[1757130474110,33.10595071,4314.7,4314.6,3.836]
[1757130474755,0.792,4314.6,4314.1,0.4424]
[1757130475057,0.792,4314.4,4314.2,0.4384]
[1757130475259,0.792,4314.4,4314.2,0.09112553]
[1757130475453,0.792,4314.4,4314.3,16.184]
[1757130475865,0.792,4314.4,4314.3,20.021]
[1757130476067,0.792,4314.4,4314.3,20.3374]
[1757130476270,3.05990797,4314.4,4314.3,20.3374]
[1757130479030,3.05990797,4314.4,4314.3,20.021]
[1757130480466,3.05990797,4314.4,4314.3,20.7758]
[1757130483348,0.792,4314.6,4314.3,21.8344]
[1757130483549,0.792,4314.6,4314.4,0.4384]
[1757130483749,0.792,4314.6,4314.5,4.5918]
[1757130486760,28.59844274,4314.7,4314.5,4.1534]
[1757130486968,28.59844274,4314.7,4314.6,1.497]
[1757130487284,28.59844274,4314.7,4314.6,0.7548]
[1757130491630,28.59844274,4314.7,4314.6,0.3164]
[1757130492309,28.59844274,4314.7,4314.6,0.7582]
[1757130503350,30.86635071,4314.7,4314.6,0.7582]
[1757130505069,30.86635071,4314.7,4314.6,0.3164]
[1757130505441,30.86635071,4314.7,4314.6,16.5004]
[1757130507381,32.19095071,4314.7,4314.6,16.184]
[1757130507758,32.62345071,4314.7,4314.6,16.184]
[1757130508268,32.19095071,4314.7,4314.6,16.184]
[1757130511142,31.15205071,4314.7,4314.6,16.184]
[1757130511340,30.86635071,4314.7,4314.6,16.184]
[1757130515486,30.86635071,4314.7,4314.6,16.4983]
[1757130516796,28.59844274,4314.7,4314.6,16.9401]
[1757130517669,28.59844274,4314.7,4314.6,16.4983]
[1757130517866,28.59844274,4314.7,4314.6,18.2124]
[1757130518096,28.59844274,4314.7,4314.6,12.51810416]
[1757130518298,28.59844274,4314.7,4314.6,7.19410416]
[1757130521302,28.59844274,4314.7,4314.6,5.49110416]
[1757130525317,28.59844274,4314.7,4314.6,7.53070416]
[1757130525318,30.00254274,4314.7,4314.6,7.53070416]
[1757130525474,30.00254274,4314.7,4314.6,23.71270416]
[1757130527417,28.89044274,4314.7,4314.6,23.71270416]
[1757130527598,28.59844274,4314.7,4314.6,23.71270416]
[1757130527908,28.59844274,4314.7,4314.6,20.94470416]
[1757130528798,30.00254274,4314.7,4314.6,20.94470416]
[1757130529693,30.00254274,4314.7,4314.6,14.55670416]
[1757130530969,28.89044274,4314.7,4314.6,14.55670416]
[1757130531770,28.89044274,4314.7,4314.6,7.53070416]
[1757130532015,28.89044274,4314.7,4314.6,7.70383792]
[1757130533113,28.59844274,4314.7,4314.6,7.70383792]
[1757130535389,28.59844274,4314.7,4314.6,22.18283792]
[1757130535591,28.59844274,4314.7,4314.6,23.88583792]
[1757130536479,30.00254274,4314.7,4314.6,23.88583792]
[1757130537210,31.3136244,4314.7,4314.6,23.88583792]
[1757130539304,30.00254274,4314.7,4314.6,23.88583792]
[1757130539712,30.00254274,4314.7,4314.6,14.72983792]
[1757130540589,28.59844274,4314.7,4314.6,14.72983792]
[1757130540789,28.59844274,4314.7,4314.6,15.02783792]
[1757130541016,28.59844274,4314.7,4314.6,15.49643792]
[1757130541779,28.59844274,4314.7,4314.6,8.47043792]
[1757130542289,28.59844274,4314.7,4314.6,8.29730416]
[1757130545438,28.59844274,4314.7,4314.6,24.47930416]
[1757130546017,28.59844274,4314.7,4314.6,21.24270416]
[1757130547725,28.59844274,4314.7,4314.6,14.85470416]
[1757130547927,28.59844274,4314.7,4314.6,9.53170416]
[1757130548095,28.59844274,4314.7,4314.6,7.82870416]
[1757130548435,28.59844274,4314.7,4314.6,9.41640416]
[1757130548729,28.59844274,4314.7,4314.6,8.29730416]
[1757130550586,28.59844274,4314.7,4314.6,7.53070416]
[1757130550814,30.60074996,4314.7,4314.6,7.53070416]
[1757130551018,31.90234996,4314.7,4314.6,7.53070416]
[1757130552431,29.90004274,4314.7,4314.6,7.53070416]
[1757130553218,30.34894274,4314.7,4314.6,7.52970416]
[1757130554198,30.34894274,4314.7,4314.6,3.69470416]
[1757130554411,30.34894274,4314.7,4314.6,7.52970416]
[1757130555549,30.34894274,4314.7,4314.6,23.71170416]
[1757130555723,32.61685071,4314.7,4314.6,23.71170416]
[1757130556633,32.61685071,4314.7,4314.6,19.87670416]
[1757130556634,32.16795071,4314.7,4314.6,19.87670416]
[1757130556867,32.61685071,4314.7,4314.6,23.71170416]
[1757130558745,32.61685071,4314.7,4314.6,9.23270416]
[1757130558963,32.16795071,4314.7,4314.6,7.52970416]
[1757130559169,30.86635071,4314.7,4314.6,7.52970416]
[1757130560172,31.16565071,4314.7,4314.6,7.52970416]
[1757130560851,32.16795071,4314.7,4314.6,7.52970416]
[1757130564025,32.61685071,4314.7,4314.6,4.52970416]
[1757130565422,32.61685071,4314.7,4314.6,20.71170416]
[1757130568954,32.16795071,4314.7,4314.6,20.71170416]
[1757130573109,32.16795071,4314.7,4314.6,20.88355391]
[1757130573276,30.86635071,4314.7,4314.6,20.88355391]
[1757130573480,30.86635071,4314.7,4314.6,21.19315391]
[1757130573966,30.86635071,4314.7,4314.6,20.88355391]
[1757130576292,30.86635071,4314.7,4314.6,18.11555391]
[1757130579761,31.16565071,4314.7,4314.6,18.11555391]
[1757130579963,31.16565071,4314.7,4314.6,4.70155391]
[1757130581406,32.22905071,4314.7,4314.6,4.70155391]
[1757130584878,30.86635071,4314.7,4314.6,4.70155391]
[1757130585477,30.86635071,4314.7,4314.6,20.88455391]
[1757130587619,32.23665071,4314.7,4314.6,20.88455391]
[1757130588296,31.17325071,4314.7,4314.6,20.88455391]
[1757130588497,30.86635071,4314.7,4314.6,20.88455391]
[1757130589085,32.67915071,4314.7,4314.6,17.04955391]
[1757130589289,32.67915071,4314.7,4314.6,20.88455391]
[1757130589992,32.23665071,4314.7,4314.6,20.88455391]
[1757130594147,32.23665071,4314.7,4314.6,20.71270416]
[1757130595713,32.67915071,4314.7,4314.6,20.71270416]
[1757130596028,32.23665071,4314.7,4314.6,20.71270416]
[1757130597926,32.67915071,4314.7,4314.6,20.71270416]
[1757130598135,32.23665071,4314.7,4314.6,20.71270416]
[1757130600204,30.86635071,4314.7,4314.6,21.00470416]
[1757130600406,30.86635071,4314.7,4314.6,21.47850416]
[1757130601144,28.59844274,4314.7,4314.6,22.50330416]
[1757130601304,28.59844274,4314.7,4314.6,8.02330416]
[1757130603230,28.59844274,4314.7,4314.6,6.32030416]
[1757130603439,28.59844274,4314.7,4314.6,9.32030416]
[1757130605550,28.59844274,4314.7,4314.6,22.73530416]
[1757130606310,28.59844274,4314.7,4314.6,21.71050416]
[1757130606512,28.59844274,4314.7,4314.6,22.73530416]
[1757130609571,28.59844274,4314.7,4314.6,9.32030416]
[1757130615469,28.59844274,4314.7,4314.6,20.16870416]
[1757130615655,28.59844274,4314.7,4314.6,24.00270416]
[1757130615868,28.59844274,4314.7,4314.6,24.45920416]
[1757130617772,28.59844274,4314.7,4314.6,24.45920416]
[1757130618076,28.59844274,4314.7,4314.6,21.69120416]
[1757130620751,29.88554274,4314.7,4314.6,20.94270416]
[1757130621261,29.88554274,4314.7,4314.6,14.55470416]
[1757130622564,32.61885071,4314.7,4314.6,0.69470416]
[1757130622889,32.61885071,4314.7,4314.6,2.26070416]
[1757130623455,32.61885071,4314.7,4314.6,2.43541691]
[1757130625500,32.61885071,4314.7,4314.6,18.61741691]
[1757130626290,33.41085071,4314.7,4314.6,18.61741691]
[1757130629094,33.41085071,4314.7,4314.6,18.44270416]
[1757130636605,32.94545071,4314.7,4314.6,18.44270416]
[1757130638577,33.41085071,4314.7,4314.6,18.44270416]
[1757130640581,33.41055071,4314.7,4314.6,16.87670416]
[1757130640910,33.41055071,4314.7,4314.6,20.71070416]
[1757130646033,33.41055071,4314.7,4314.6,16.87670416]
[1757130646203,33.41055071,4314.7,4314.6,20.71070416]